[Event "Indian Blitz Championship 2023"]
[Site "Nashik"]
[Date "2024.03.07"]
[Round "5.1"]
[White "Raja Rithvik R"]
[Black "Srihari L R"]
[Result "1-0"]
[ECO "D35"]
[WhiteElo "2532"]
[BlackElo "2490"]
[Annotator "TA"]
[PlyCount "123"]
[EventDate "2024.03.07"]
[EventType "blitz"]
[EventCountry "IND"]
[SourceTitle "playchess.com"]
[Source "ChessBase"]
[SourceQuality "1"]
[TimeControl "180+2"]

{[%evp 20,123,21,16,19,12,35,29,34,48,37,45,45,36,51,47,77,80,81,69,64,-23,131,142,153,136,125,0,199,198,204,202,195,196,181,192,201,191,186,190,255,265,304,295,309,300,329,324,320,263,280,270,257,278,270,272,344,343,361,361,361,361,360,346,408,421,475,414,415,404,438,431,650,655,849,823,809,843,852,811,788,783,6032,29948,29956,29956,29972,29973,29972,29972,29969,29972,29974,29975,29971,29970,29974,29977,29979,29980,29978,29980,29984,29985,29985,29986]} 1. d4 {[%emt 0:00:02]} Nf6 {[%emt 0:00:01]} 2. c4 {[%emt 0:00:02]} e6 {[%emt 0:00:01]} 3. Nf3 {[%emt 0:00:01]} d5 {[%emt 0:00:01]} 4. Nc3 {[%emt 0:00:04]} Nbd7 {[%emt 0:00:12]} 5. Bf4 {[%emt 0:00:06]} c6 {[%emt 0:00:42]} 6. e3 {[%emt 0:00:09]} Be7 {[%emt 0:00:02]} 7. h3 {[%emt 0:00:12]} O-O {[%emt 0:00:03]} 8. Rc1 {[%emt 0:00:06]} b6 {[%emt 0:00:17]} 9. cxd5 {[%emt 0:00:05]} exd5 {[%emt 0:00:02]} 10. Bd3 {[%emt 0:00:09]} Bb7 {[%emt 0:00:03]} 11. O-O {[%emt 0:00:05]} Re8 {[%emt 0:00:01]} 12. Qc2 {[%emt 0:00:11]} Nf8 {[%emt 0:00:08]} 13. Rfd1 {[%emt 0:00:02]} Ng6 {[%emt 0:00:02] White has an edge.} 14. Bh2 {[%emt 0:00:05]} Bd6 {[%emt 0:00:01]} 15. Bxd6 {[%emt 0:00:06]} Qxd6 {[%emt 0:00:01]} 16. a3 {[%emt 0:00:05]} Re7 {[%emt 0:00:18]} 17. b4 {[%emt 0:00:04]} Rae8 {[%emt 0:00:01]} 18. Qb3 {[%emt 0:00:40]} Ne4 {[%emt 0:00:16]} 19. a4 {[%emt 0:00:03]} f5 {[%emt 0:00:58][%cal Oe4f2]} 20. b5 {[%emt 0:00:14]} (20. Ne2 $14) 20... cxb5 $2 {[%emt 0:00:08]} ({Black should try} 20... Nxf2 $1 $11 21. Kxf2 Rxe3) 21. Nxb5 $16 {[%emt 0:00:10]} Qb8 {[%emt 0:00:06]} 22. Nc3 $36 {[%emt 0:00:30][%mdl 2048] White is in control.} Qd6 {[%emt 0:00:01][%cal Oe4f2] [#]} 23. a5 {[%emt 0:00:09]} bxa5 $2 {[%emt 0:00:08] [#] White stays focused until the end.} (23... Nxf2 $1 $11 {and Black stays safe.} 24. Kxf2 Rxe3) 24. Bxe4 $1 $18 {[%emt 0:00:14]} fxe4 {[%emt 0:00:05] [#]} 25. Nxe4 {[%emt 0:00:01][%mdl 512]} Qb4 {[%emt 0:00:11]} (25... Qb6 26. Nc5) 26. Nc5 {[%emt 0:00:03] Excellent horsemanship.} Qxb3 {[%emt 0:00:01]} 27. Nxb3 {[%emt 0:00:01]} a4 {[%emt 0:00:01]} 28. Nc5 {[%emt 0:00:01][%cal Bb3c5,Bc5a4,Ba4c3][%mdl 32]} Bc6 {[%emt 0:00:00]} 29. Ra1 {[%emt 0:00:03]} Rb8 {[%emt 0:00:04]} (29... a5 {is a better defense.} 30. Nxa4 Ra7) 30. Nxa4 {[%emt 0:00:02]} Be8 {[%emt 0:00:04]} 31. Nc3 {[%emt 0:00:02]} Rd7 {[%emt 0:00:01]} 32. Ra5 {[%emt 0:00:02]} Bf7 {[%emt 0:00:01]} 33. Rda1 {[%emt 0:00:04]} Rbb7 {[%emt 0:00:01]} 34. Ng5 {[%emt 0:00:02]} Ne7 {[%emt 0:00:02]} 35. Na4 {[%emt 0:00:07]} Nc6 {[%emt 0:00:03]} 36. Rc5 {[%emt 0:00:04]} Ne7 {[%emt 0:00:01]} 37. Rc3 {[%emt 0:00:03] Hoping for Nc5.} h6 {[%emt 0:00:02]} 38. Nxf7 {[%emt 0:00:01]} Kxf7 {[%emt 0:00:01]} 39. Nc5 {[%emt 0:00:01][%csl LRb7,LRd7]} Rdc7 {[%emt 0:00:04]} 40. Rca3 {[%emt 0:00:00]} Rb2 {[%emt 0:00:03]} 41. Rxa7 {[%emt 0:00:01]} Rxa7 {[%emt 0:00:00]} 42. Rxa7 {[%emt 0:00:01][%mdl 4096] Endgame. KRN-KRN} Kf6 {[%emt 0:00:01]} 43. Ra6+ {[%emt 0:00:03]} Kf7 {[%emt 0:00:02]} 44. g4 {[%emt 0:00:02]} Ng6 {[%emt 0:00:04]} 45. Kg2 {[%emt 0:00:05]} Nh4+ {[%emt 0:00:02]} (45... Rb5 $142 46. Ra7+ Ne7) 46. Kg3 {[%emt 0:00:01]} g5 {[%emt 0:00:02]} 47. Rxh6 {[%emt 0:00:07]} Rb1 {[%emt 0:00:02]} 48. f4 {[%emt 0:00:01]} Rg1+ {[%emt 0:00:02]} 49. Kf2 {[%emt 0:00:01]} Rg2+ {[%emt 0:00:03]} 50. Kf1 {[%emt 0:00:01]} Rg3 {[%emt 0:00:01]} 51. fxg5 {[%emt 0:00:02]} Rxh3 {[%emt 0:00:04] White mates.} 52. Ke2 {[%emt 0:00:03]} Kg7 {[%emt 0:00:02]} 53. Ne6+ {[%emt 0:00:02]} Kf7 {[%emt 0:00:00]} 54. Nf4 {[%emt 0:00:01]} Rh2+ {[%emt 0:00:01]} 55. Kd3 {[%emt 0:00:01]} Nf3 {[%emt 0:00:03]} 56. Rxh2 {[%emt 0:00:01]} Nxh2 {[%emt 0:00:01]} 57. Nxd5 {[%emt 0:00:01] KN-KN} Kg6 {[%emt 0:00:01]} 58. e4 {[%emt 0:00:07][%cal Be3e4,Be4e5][%mdl 32]} Kxg5 {[%emt 0:00:01]} 59. Ne3 {[%emt 0:00:01]} Nf3 {[%emt 0:00:02]} 60. e5 {[%emt 0:00:01]} Nh4 {[%emt 0:00:06]} 61. Ke4 {[%emt 0:00:02]} Ng6 {[%emt 0:00:01]} 62. d5 {[%emt 0:00:00] Weighted Error Value: White=0.13 (very precise) /Black=0.31.  Loses game:     	---       	Black=1      Mistake:       	White=2     	Black=3      Inaccurate:     	---       	Black=1      OK:         	White=19    	Black=10     Best:        	White=1     	Black=1      Strong:       	White=1     	---        Brilliant:      	White=1     	---} 1-0

[Event "Indian Blitz Championship 2023"]
[Site "Nashik"]
[Date "2024.03.07"]
[Round "5.2"]
[White "Kushagra Mohan"]
[Black "Mohammad Nubairshah Shaikh"]
[Result "0-1"]
[ECO "B08"]
[WhiteElo "2351"]
[BlackElo "2436"]
[Annotator "TA"]
[PlyCount "46"]
[EventDate "2024.03.07"]
[EventType "blitz"]
[EventCountry "IND"]
[SourceTitle "playchess.com"]
[Source "ChessBase"]
[SourceQuality "1"]
[TimeControl "180+2"]

{[%evp 22,46,0,0,0,-18,-22,-96,-102,-150,-149,-121,-121,-144,-138,-136,-141,-206,-187,-259,-256,-312,-277,-271,-204,-1005,-979]} 1. e4 {[%emt 0:00:01]} g6 {[%emt 0:00:00]} 2. d4 {[%emt 0:00:01]} Bg7 {[%emt 0:00:01]} 3. Nf3 {[%emt 0:00:01]} c6 {[%emt 0:00:01]} 4. h3 {[%emt 0:00:05]} d6 {[%emt 0:00:00]} 5. Be2 {[%emt 0:00:01]} Nf6 {[%emt 0:00:01]} 6. Nc3 {[%emt 0:00:00]} O-O {[%emt 0:00:02]} 7. a4 {[%emt 0:00:01]} Nbd7 {[%emt 0:00:00]} 8. O-O {[%emt 0:00:02]} e5 {[%emt 0:00:01]} 9. dxe5 {[%emt 0:00:09]} dxe5 {[%emt 0:00:01]} 10. Be3 {[%emt 0:00:03]} Qe7 {[%emt 0:00:00]} 11. Bc4 {[%emt 0:00:11]} Nc5 {[%emt 0:00:01]} 12. Nd2 {[%emt 0:00:01]} Rd8 {[%emt 0:00:00][%cal Oc5e4]} 13. Qe2 {[%emt 0:00:05]} Ne6 {[%emt 0:00:01]} 14. Bd3 {[%emt 0:00:37]} (14. Rad1 $11 {bleibt in der Remisbreite.}) 14... Nh5 $17 {[%emt 0:00:01] Schwarz steht besser.} 15. Nc4 {[%emt 0:00:12]} ({Besser ist} 15. Nf3) 15... Nef4 {[%emt 0:00:03]} 16. Bxf4 {[%emt 0:00:02]} Nxf4 {[%emt 0:00:01]} 17. Qf3 {[%emt 0:00:04]} Qf6 {[%emt 0:00:32][%cal Of4h3] Schwarz steht aktiver.} 18. Qg3 {[%emt 0:00:17]} h5 {[%emt 0:00:06]} 19. h4 {[%emt 0:00:04]} (19. Kh1 $17 {ist wohl besser.}) 19... Be6 {[%emt 0:00:13]} 20. Rad1 {[%emt 0:00:03]} (20. Rfd1 $142) 20... Rd4 {[%emt 0:00:00]} 21. Na5 {[%emt 0:00:10]} Qe7 {[%emt 0:00:11] ...Rad8 ist eine echte Drohung.} 22. Nb3 {[%emt 0:00:03]} Rd7 {[%emt 0:00:19]} 23. Ne2 $2 {[%emt 0:00:02] [#]} (23. Be2) 23... Rxd3 $1 {[%emt 0:00:02][%mdl 512] Schwarz nahm nach der Eröffnung die Zügel in die Hand.   Gewichteter Fehlerwert: Weiß=0.72/Schwarz=0.14 (sehr präzise) .  Fehler:       	Weiß=5     	---        OK:         	Weiß=3     	Schwarz=3     Brilliant:      	---       	Schwarz=1} 0-1

[Event "Indian Blitz Championship 2023"]
[Site "Nashik"]
[Date "2024.03.07"]
[Round "5.3"]
[White "Manish Anto Cristiano F"]
[Black "Sengupta, Deep"]
[Result "1-0"]
[ECO "C11"]
[WhiteElo "2286"]
[BlackElo "2500"]
[Annotator "RC"]
[PlyCount "51"]
[EventDate "2024.03.07"]
[EventType "blitz"]
[EventCountry "IND"]
[SourceTitle "playchess.com"]
[Source "ChessBase"]
[SourceQuality "1"]
[TimeControl "180+2"]

1. e4 {[%emt 0:00:01]} e6 {[%emt 0:00:02]} 2. d4 {[%emt 0:00:01]} d5 {[%emt 0:00:01]} 3. Nc3 {[%emt 0:00:01]} Nf6 {[%emt 0:00:02]} 4. e5 {[%emt 0:00:01]} Nfd7 {[%emt 0:00:01]} 5. f4 {[%emt 0:00:01]} c5 {[%emt 0:00:00]} 6. Nf3 {[%emt 0:00:01]} Nc6 {[%emt 0:00:01]} 7. Be3 {[%emt 0:00:01]} Be7 {[%emt 0:00:01]} 8. Qd2 {[%emt 0:00:04]} O-O {[%emt 0:00:02]} 9. Be2 {[%emt 0:00:02]} b6 {[%emt 0:00:05]} 10. O-O {[%emt 0:00:06]} Bb7 {[%emt 0:00:02]} 11. Nd1 {[%emt 0:00:03]} cxd4 {[%emt 0:00:04]} 12. Nxd4 {[%emt 0:00:02]} Nc5 {[%emt 0:00:01]} 13. Nf2 {[%emt 0:00:03]} Rc8 {[%emt 0:00:12]} 14. c3 {[%emt 0:00:05]} Nxd4 {[%emt 0:00:33]} 15. Bxd4 {[%emt 0:00:05]} Qc7 {[%emt 0:02:25]} 16. b4 {[%emt 0:00:06]} Ne4 {[%emt 0:00:00]} 17. Nxe4 {[%emt 0:00:02]} dxe4 {[%emt 0:00:00]} 18. f5 {[%emt 0:00:06]} Qc6 {[%emt 0:00:00]} 19. Qe3 {[%emt 0:00:18]} f6 {[%emt 0:00:00]} 20. Bg4 {[%emt 0:00:24]} fxe5 {[%emt 0:00:00]} 21. Bxe5 {[%emt 0:00:02]} Qd5 {[%emt 0:00:00]} 22. Qg3 {[%emt 0:00:19]} Ba6 {[%emt 0:00:00]} 23. Be2 {[%emt 0:00:06]} Qxe5 {[%emt 0:00:06]} 24. Qxe5 {[%emt 0:00:02]} Bxe2 {[%emt 0:00:01]} 25. Qxe6+ {[%emt 0:00:01]} Rf7 {[%emt 0:00:00]} 26. Qxc8+ {[%emt 0:00:02]} 1-0

[Event "Indian Blitz Championship 2023"]
[Site "Nashik"]
[Date "2024.03.07"]
[Round "5.4"]
[White "Nitin, S.."]
[Black "Wagh Suyog"]
[Result "0-1"]
[ECO "B11"]
[WhiteElo "2338"]
[BlackElo "2250"]
[Annotator "TA"]
[PlyCount "90"]
[EventDate "2024.03.07"]
[EventType "blitz"]
[EventCountry "IND"]
[SourceTitle "playchess.com"]
[Source "ChessBase"]
[SourceQuality "1"]
[TimeControl "180+2"]

{[%evp 9,90,28,34,13,35,32,18,33,40,27,45,7,52,48,87,73,79,82,96,72,84,70,74,13,36,0,0,-88,-51,-94,-93,-221,-211,-217,-210,-225,-10,-4,-15,-81,-13,-73,0,-55,0,0,168,80,84,-56,-63,-64,-64,-65,-65,-337,-293,-524,-521,-602,-541,-530,-547,-1760,-1519,-7915,-683,-1426,-1400,-1293,-656,-635,-658,-637,-630,-1247,-1243,-6117,-6087,-29986,-834,-29981,-29981]} 1. e4 {[%emt 0:00:02]} c6 {[%emt 0:00:00]} 2. Nc3 {[%emt 0:00:02]} d5 {[%emt 0:00:01]} 3. Qe2 {[%emt 0:00:01]} dxe4 {[%emt 0:00:34]} 4. Nxe4 {[%emt 0:00:01]} Bf5 {[%emt 0:00:03]} 5. d3 {[%emt 0:00:01]} e6 {[%emt 0:00:02]} 6. Bd2 {[%emt 0:00:01]} Nd7 {[%emt 0:00:05]} 7. g4 {[%emt 0:00:02]} Bxe4 {[%emt 0:00:09]} 8. dxe4 {[%emt 0:00:01] Die Stellung ist ausgeglichen.} Qc7 {[%emt 0:00:03]} 9. O-O-O {[%emt 0:00:07]} Bd6 {[%emt 0:00:02][%cal Od6f4]} 10. Qe3 {[%emt 0:00:24]} Ne7 {[%emt 0:00:16][%cal Oe7g6]} 11. f4 {[%emt 0:00:04]} g5 {[%emt 0:00:17]} 12. fxg5 {[%emt 0:00:34]} Ng6 {[%emt 0:00:06]} 13. Nf3 {[%emt 0:00:04]} Bf4 {[%emt 0:00:06]} 14. Qc3 {[%emt 0:00:03]} O-O-O {[%emt 0:00:06]} 15. h4 {[%emt 0:00:10]} Bxd2+ {[%emt 0:00:03]} 16. Rxd2 {[%emt 0:00:06]} (16. Qxd2 Nde5 17. Qe2 Rxd1+ 18. Qxd1 Nxg4 $19) ({Vorzuziehen ist} 16. Nxd2 $16 Nb6 17. Bd3) 16... Qf4 $1 $11 {[%emt 0:00:02][%csl LRe4,LRg4][%cal Oh7h6]} 17. Nd4 {[%emt 0:01:00]} Nde5 {[%emt 0:00:20][%cal Og6h4]} 18. Bg2 {[%emt 0:00:24]} (18. h5 $11 Nh4 19. Be2) 18... Qxg4 {[%emt 0:00:27]} 19. h5 {[%emt 0:00:04]} Nf4 {[%emt 0:00:03] Ein dynamisches Springerpaar.} 20. Bf1 {[%emt 0:00:13]} (20. Bf3 $17 {war die einzige Chance.} Qxg5 21. Kb1) 20... Qxg5 $19 {[%emt 0:00:03]} 21. Kb1 {[%emt 0:00:06]} Rhg8 {[%emt 0:00:12]} 22. a4 {[%emt 0:00:01][%cal Of1a6]} Qe7 $2 {[%emt 0:00:38]} (22... Qg3 $19 {...Qe1+ wäre nun fies.} 23. Qxg3 Rxg3) 23. a5 $11 {[%emt 0:00:05]} a6 {[%emt 0:00:02]} 24. Nb3 {[%emt 0:00:10]} (24. Bxa6 $11 {hält das Gleichgewicht.} bxa6 25. Rf1) 24... Rxd2 {[%emt 0:00:06]} (24... Rg5 $17 25. Rxd8+ Qxd8) 25. Qxd2 {[%emt 0:00:01]} (25. Nxd2 $11 Rg5 26. Nf3 Nxf3 (26... Rxh5 $2 27. Rxh5 Nxh5 28. Nxe5 $18) 27. Qxf3) 25... Qf6 {[%emt 0:00:01]} (25... Rg4 $1 $17) 26. Qd4 {[%emt 0:00:02]} ({Besser ist} 26. Nc5 $11) 26... Rd8 {[%emt 0:00:02]} (26... Nd7 $1 $15 27. Qa7 Qe5 28. Bxa6 Qb8 (28... bxa6 29. Rd1 $14) 29. Qxb8+ Kxb8) 27. Qa7 {[%emt 0:00:01][%cal Of1a6] Zielt auf Bxa6! ab.} Qe7 $2 {[%emt 0:00:02] [#] Aktives Gegenspiel!} (27... Nd7 $11 {und Schwarz muss sich keine Sorgen machen.}) 28. Bxa6 {[%emt 0:00:02]} (28. Nc5 $1 $18 Qc7 (28... Rd1+ 29. Ka2 $18) 29. Ka2 (29. Bxa6 bxa6 30. Qa8+ Qb8 $19)) 28... Qc7 $16 {[%emt 0:00:03] [#]} (28... Qb4 29. Qa8+ (29. Rf1 bxa6 30. Nc5 Nxh5 $17) 29... Kc7 30. Qa7 $14) 29. Nc5 {[%emt 0:00:01]} bxa6 $15 {[%emt 0:00:03]} 30. Qa8+ {[%emt 0:00:01]} Qb8 {[%emt 0:00:01]} 31. Qxa6+ {[%emt 0:00:01]} Kc7 {[%emt 0:00:00]} 32. Qf1 $2 {[%emt 0:00:02][%mdl 8192]} ({Weiss kommt nicht vorbei an} 32. Rf1 $1 $15) 32... Qb5 $1 $19 {[%emt 0:00:05]} 33. Qxf4 $2 {[%emt 0:00:08]} (33. Qf2) 33... Qxc5 {[%emt 0:00:00]} 34. Rf1 {[%emt 0:00:02]} Rd7 {[%emt 0:00:01][%cal Oc7c8] Und ...Kc8! würde nun gewinnen.} 35. a6 {[%emt 0:00:01]} Kb6 {[%emt 0:00:01]} 36. c3 {[%emt 0:00:03]} Kxa6 {[%emt 0:00:01] Droht stark ...Qb5.} 37. Kc2 {[%emt 0:00:01]} Kb7 {[%emt 0:00:02]} 38. Ra1 {[%emt 0:00:01]} Qb5 {[%emt 0:00:01]} 39. Qe3 {[%emt 0:00:03] [#] Pariert Qe2+.} Qxb2+ $3 {[%emt 0:00:06][%mdl 512]} 40. Kxb2 {[%emt 0:00:02] jetzt Qa7+ und aus.} Nc4+ {[%emt 0:00:00]} 41. Kb3 {[%emt 0:00:00]} Nxe3 {[%emt 0:00:01]} 42. Rg1 {[%emt 0:00:01]} f5 {[%emt 0:00:03]} 43. e5 {[%emt 0:00:02]} f4 {[%emt 0:00:02] ( -> ...f3)} 44. h6 {[%emt 0:00:01]} Nf5 {[%emt 0:00:00]} (44... f3 $142 45. Rg7 Kc7 46. Rg3 f2 47. Rf3 f1=Q (47... f1=R $2 48. Rxe3 Rh1 49. Rf3 $19) 48. Rxf1 Nxf1 49. c4 Kb6 50. Kb4 Ne3 51. c5+ Ka6 52. Kb3 Kb5 53. Kc3 Ka4 (53... Kxc5 {ist ein Selbstmatt.} 54. Kb3 Rd3+ 55. Ka2 Kb4 56. Kb2 Rd1 57. Ka2 Kc3 58. Ka3 Ra1#) 54. Kb2 Rd3 55. Ka2 Rd2+ 56. Kb1 Kb3 57. Kc1 Rd1#) 45. Rg8 {[%emt 0:00:02]} Nxh6 {[%emt 0:00:01] Gewichteter Fehlerwert: Weiß=0.95/Schwarz=0.63.  Verlustzug:     	Weiß=1     	Schwarz=1     Gewinn verpasst:   	---       	Schwarz=1     Fehler:       	Weiß=9     	Schwarz=3     Ungenau:       	Weiß=5     	Schwarz=3     OK:         	Weiß=8     	Schwarz=5     Bester:       	Weiß=2     	Schwarz=5     Stark:        	---       	Schwarz=2} 0-1

[Event "Indian Blitz Championship 2023"]
[Site "Nashik"]
[Date "2024.03.07"]
[Round "5.5"]
[White "Hari Madhavan N B"]
[Black "Aronyak Ghosh"]
[Result "1-0"]
[ECO "B15"]
[WhiteElo "2395"]
[BlackElo "2517"]
[Annotator "TA"]
[PlyCount "87"]
[EventDate "2024.03.07"]
[EventType "blitz"]
[EventCountry "IND"]
[SourceTitle "playchess.com"]
[Source "ChessBase"]
[SourceQuality "1"]
[TimeControl "180+2"]

{[%evp 16,87,1,0,0,0,22,0,0,-1,0,-9,31,22,31,15,23,30,43,23,346,334,333,340,363,348,381,380,388,383,387,384,377,374,468,370,484,492,465,492,518,531,549,545,588,557,572,575,729,646,771,455,529,528,680,680,597,535,574,561,617,604,657,634,1137,1118,1131,1089,1077,1078,1681,1691,1590,915]} 1. e4 {[%emt 0:00:04]} c6 {[%emt 0:00:02]} 2. d4 {[%emt 0:00:02]} d5 {[%emt 0:00:02]} 3. Nc3 {[%emt 0:00:05]} dxe4 {[%emt 0:00:02]} 4. Nxe4 {[%emt 0:00:01]} Nf6 {[%emt 0:00:02]} 5. Nxf6+ {[%emt 0:00:04]} exf6 {[%emt 0:00:01]} 6. Nf3 {[%emt 0:00:01]} Bd6 {[%emt 0:00:03]} 7. Bd3 {[%emt 0:00:02]} O-O {[%emt 0:00:04]} 8. O-O {[%emt 0:00:03]} Bg4 {[%emt 0:00:02]} 9. h3 {[%emt 0:00:03]} Bh5 {[%emt 0:00:03]} 10. Re1 {[%emt 0:00:02]} Na6 {[%emt 0:00:14]} 11. c3 {[%emt 0:00:02]} Nc7 {[%emt 0:00:04] The position is equal.} 12. Be2 {[%emt 0:00:16]} (12. g4 $5 Bg6 $8 13. Kf1 $11) 12... Re8 {[%emt 0:00:03]} 13. Nh4 {[%emt 0:00:09]} Bg6 {[%emt 0:00:23]} 14. Nxg6 {[%emt 0:00:06]} hxg6 {[%emt 0:00:02][%cal Bh7g6,Bg6g5][%mdl 32]} 15. Bf3 {[%emt 0:00:04]} Qd7 {[%emt 0:00:05]} 16. Bd2 {[%emt 0:00:07]} Ne6 {[%emt 0:00:09]} 17. Qc2 {[%emt 0:00:09]} Bf4 $2 {[%emt 0:00:07][%mdl 8192] [#] A mistake that costs the game.} (17... f5 $11) 18. Rxe6 $1 $18 {[%emt 0:00:08][%mdl 512]} Qxe6 {[%emt 0:00:17]} 19. Bxf4 {[%emt 0:00:02]} g5 {[%emt 0:00:03]} 20. Bd2 {[%emt 0:00:08]} Qd6 {[%emt 0:00:24]} 21. Rd1 {[%emt 0:00:06]} Rad8 {[%emt 0:00:11]} 22. Be3 {[%emt 0:00:08]} Qc7 {[%emt 0:00:07]} 23. c4 {[%emt 0:00:04][%cal Bc3c4,Bc4b5][%mdl 32]} Re7 {[%emt 0:00:32]} 24. d5 {[%emt 0:00:06]} Red7 {[%emt 0:00:11]} 25. Qa4 {[%emt 0:00:21]} (25. Bxa7 c5 26. Rd3 Re8 $18) 25... b5 {[%emt 0:00:09]} 26. cxb5 {[%emt 0:00:04] White is clearly winning.} cxd5 {[%emt 0:00:01]} 27. Qd4 {[%emt 0:00:10]} Qe5 {[%emt 0:00:21]} 28. a4 {[%emt 0:00:22]} Qe7 {[%emt 0:00:01]} 29. Bd2 {[%emt 0:00:20]} Rc8 {[%emt 0:00:05]} 30. Re1 {[%emt 0:00:04]} ({Inferior is} 30. Bxd5 Rc5 31. Bxf7+ Kxf7 $11) 30... Qd8 {[%emt 0:00:03]} 31. b3 {[%emt 0:00:06] Inhibits Rc4.} Rc2 {[%emt 0:00:01]} 32. Bd1 {[%emt 0:00:03]} Rc8 {[%emt 0:00:03]} 33. a5 {[%emt 0:00:05] Black must now prevent Bg4.} Rb8 {[%emt 0:00:02]} 34. b4 {[%emt 0:00:02]} Re7 {[%emt 0:00:06]} 35. Rxe7 {[%emt 0:00:11]} Qxe7 {[%emt 0:00:01]} 36. Qd3 {[%emt 0:00:01]} Qe5 {[%emt 0:00:03]} 37. Bc3 {[%emt 0:00:06]} Qc7 {[%emt 0:00:02]} 38. Bf3 {[%emt 0:00:03]} Rc8 {[%emt 0:00:03]} 39. Bd2 {[%emt 0:00:03]} Qc4 {[%emt 0:00:01]} 40. Qxc4 {[%emt 0:00:05]} dxc4 {[%emt 0:00:02]} 41. b6 {[%emt 0:00:05]} axb6 {[%emt 0:00:02]} 42. a6 {[%emt 0:00:01][%cal Ba5a6,Ba6a7][%mdl 32]} c3 {[%emt 0:00:01] [#]} 43. Bxc3 $1 {[%emt 0:00:05][%mdl 512]} Rxc3 {[%emt 0:00:02]} 44. a7 {[%emt 0:00:01] Weighted Error Value: White=0.25 (precise) /Black=0.49.  Loses game:     	---       	Black=1      Inaccurate:     	---       	Black=2      OK:         	White=12    	Black=5      Brilliant:      	White=1     	---} 1-0